lending/lending_fUSD_20250719
["ID","MTS","AMOUNT","RATE_DAILY","PERIOD"]
[373183604,1752894648811,-535.18,0.00019178,2]
[373183606,1752894648823,-480.0,0.00019178,2]
[373183608,1752894648834,-583.69,0.00019178,2]
[373183610,1752894648845,-151.711597,0.00019178,2]
[373183612,1752894648856,-960.05,0.00019178,2]
[373183614,1752894648867,-480.0,0.00019178,2]
[373183616,1752894648879,-480.0,0.00019178,2]
[373183619,1752894648890,-480.0,0.00019178,2]
[373183621,1752894648901,-151.0,0.00019178,2]
[373183623,1752894648911,-480.0,0.00019178,2]
[373183625,1752894648921,-2146.28,0.00019178,2]
[373183627,1752894648932,-480.0,0.00019178,2]
[373183629,1752894648942,-1145.52,0.00019178,2]
[373183631,1752894648953,-581.22,0.00019178,2]
[373183633,1752894648963,-679.14,0.00019178,2]
[373183635,1752894648974,-480.0,0.00019178,2]
[373183637,1752894648985,-480.0,0.00019178,2]
[373183639,1752894648996,-722.02,0.00019178,2]
[373183642,1752894649007,-480.0,0.00019178,2]
[373183644,1752894649018,-584.65,0.00019178,2]
[373183646,1752894649029,-480.0,0.00019178,2]
[373183648,1752894649040,-498.23,0.00019178,2]
[373183650,1752894649051,-480.0,0.00019178,2]
[373183652,1752894649062,-1918.71,0.00019178,2]
[373183654,1752894649075,-10467.59,0.00019178,2]
[373183656,1752894649086,-496.58,0.00019178,2]
[373183658,1752894649096,-1238.07,0.00019178,2]
[373183660,1752894649107,-480.0,0.00019178,2]
[373183662,1752894649117,-480.0,0.00019178,2]
[373183664,1752894649128,-1000.0,0.00019178,2]
[373183667,1752894649139,-803.56,0.00019178,2]
[373183669,1752894649150,-480.0,0.00019178,2]
[373183671,1752894649160,-480.0,0.00019178,2]
[373183673,1752894649171,-480.0,0.00019178,2]
[373183675,1752894649182,-1544.11,0.00019178,2]
[373183677,1752894649193,-480.0,0.00019178,2]
[373183679,1752894649204,-480.0,0.00019178,2]
[373183682,1752894649216,-2491.41,0.00019178,2]
[373183684,1752894649226,-1622.72,0.00019178,2]
[373183686,1752894649238,-480.0,0.00019178,2]
[373183688,1752894649248,-480.0,0.00019178,2]
[373183690,1752894649259,-1157.28,0.00019178,2]
[373183692,1752894649271,-480.0,0.00019178,2]
[373183694,1752894649282,-480.0,0.00019178,2]
[373183695,1752894649292,-151.0,0.00019178,2]
[373183697,1752894649303,-830.62,0.00019178,2]
[373183700,1752894649314,-151.0,0.00019178,2]
[373183702,1752894649325,-480.0,0.00019178,2]
[373183704,1752894649336,-892.08,0.00019178,2]
[373183706,1752894649346,-858.02,0.00019178,2]
[373183708,1752894649356,-1289.53,0.00019178,2]
[373183710,1752894649367,-480.0,0.00019178,2]
[373183712,1752894649378,-569.82,0.00019178,2]
[373183714,1752894649390,-480.0,0.00019178,2]
[373183716,1752894649401,-563.68,0.00019178,2]
[373183718,1752894649411,-480.0,0.00019178,2]
[373183720,1752894649421,-678.01,0.00019178,2]
[373183777,1752894649955,-866.8,0.00019178,2]
[373183780,1752894649975,-480.0,0.00019178,2]
[373183783,1752894649993,-480.25,0.00019178,2]
[373183785,1752894650005,-480.0,0.00019178,2]
[373183787,1752894650015,-480.0,0.00019178,2]
[373183789,1752894650024,-1197.25,0.00019178,2]
[373183791,1752894650033,-917.21,0.00019178,2]
[373183792,1752894650043,-588.94,0.00019178,2]
[373183793,1752894650053,-480.0,0.00019178,2]
[373183794,1752894650062,-480.0,0.00019178,2]
[373183795,1752894650071,-659.27,0.00019178,2]
[373183796,1752894650081,-480.0,0.00019178,2]
[373183797,1752894650091,-480.0,0.00019178,2]
[373183798,1752894650100,-480.0,0.00019178,2]
[373183799,1752894650110,-722.12,0.00019178,2]
[373183800,1752894650119,-480.0,0.00019178,2]
[373183801,1752894650129,-671.1,0.00019178,2]
[373183802,1752894650138,-480.0,0.00019178,2]
[373183803,1752894650148,-1894.22,0.00019178,2]
[373183804,1752894650158,-1931.38,0.00019178,2]
[373183805,1752894650170,-480.0,0.00019178,2]
[373183806,1752894650179,-480.0,0.00019178,2]
[373183807,1752894650189,-480.0,0.00019178,2]
[373183808,1752894650199,-480.0,0.00019178,2]
[373183809,1752894650208,-480.0,0.00019178,2]
[373183810,1752894650217,-480.0,0.00019178,2]
[373183811,1752894650226,-480.0,0.00019178,2]
[373183812,1752894650236,-480.0,0.00019178,2]
[373183813,1752894650245,-151.0,0.00019178,2]
[373183814,1752894650254,-1163.02,0.00019178,2]
[373183815,1752894650264,-480.0,0.00019178,2]
[373183816,1752894650273,-837.61,0.00019178,2]
[373183817,1752894650283,-151.0,0.00019178,2]
[373183818,1752894650292,-606.21,0.00019178,2]
[373183819,1752894650302,-1322.97,0.00019178,2]
[373183820,1752894650311,-480.0,0.00019178,2]
[373183821,1752894650321,-480.0,0.00019178,2]
[373183822,1752894650330,-480.0,0.00019178,2]
[373183824,1752894650339,-480.0,0.00019178,2]
[373183826,1752894650349,-480.0,0.00019178,2]
[373183828,1752894650358,-480.0,0.00019178,2]
[373183830,1752894650368,-814.91,0.00019178,2]
[373183832,1752894650378,-480.0,0.00019178,2]
[373183834,1752894650388,-3385.81215703,0.00019178,2]
[373183846,1752894650690,-737.02784297,0.00019178,2]
[373183847,1752894650702,-672.16,0.00019178,2]
[373183848,1752894650711,-828.59,0.00019178,2]
[373183849,1752894650721,-552.69,0.00019178,2]
[373183850,1752894650731,-152.34,0.00019178,2]
[373183851,1752894650741,-6539.23004137,0.00019178,2]
[373183853,1752894650755,-2532.78100485,0.00019178,2]
[373183855,1752894650774,-6918.63603917,0.00019178,2]
[373183857,1752894650783,-503.85220011,0.00019185,2]
[373183859,1752894650792,-151.0,0.00019186,2]
[373183861,1752894650803,-151.0,0.00019186,2]
[373183863,1752894650812,-157.725339,0.00019186,2]
[373183864,1752894650822,-209.288417,0.00019186,2]
[373183865,1752894650831,-209.288417,0.00019186,2]
[373183866,1752894650842,-153.630509,0.00019186,2]
[373183867,1752894650851,-236.500842,0.00019186,2]
[373183868,1752894650862,-11931.71517791,0.00019186,2]
[373183869,1752894650879,-509.64999994,0.00019186,2]
[373183870,1752894650908,-11418.0144165,0.00019186,2]
[373183872,1752894681165,162.82,0.00013699,2]
[373183873,1752894682233,3007.56121132,0.0002501,120]
[373184315,1752895205376,500.0,6.8e-07,120]
[373184316,1752895216688,500.0,6.8e-07,120]
[373184317,1752895225090,500.0,6.8e-07,120]
[373184318,1752895236521,500.0,6.8e-07,120]
[373184319,1752895244219,500.0,6.8e-07,120]
[373184320,1752895252175,500.0,6.8e-07,120]
[373184321,1752895259337,500.0,6.8e-07,120]
[373184322,1752895266814,500.0,6.8e-07,120]
[373184323,1752895274954,500.0,6.8e-07,120]
[373184324,1752895283829,500.0,6.8e-07,120]
[373184325,1752895291870,500.0,6.8e-07,120]
[373184326,1752895299816,500.0,6.8e-07,120]
[373184327,1752895307957,500.0,6.8e-07,120]
[373184328,1752895315695,500.0,6.8e-07,120]
[373184329,1752895322426,500.0,6.8e-07,120]
[373184330,1752895329686,500.0,6.8e-07,120]
[373184331,1752895336751,500.0,6.8e-07,120]
[373184333,1752895346090,500.0,6.8e-07,120]
[373184334,1752895354093,500.0,6.8e-07,120]
[373184335,1752895362851,500.0,6.8e-07,120]
[373184336,1752895370256,500.0,6.8e-07,120]
[373184337,1752895379569,500.0,6.8e-07,120]
[373184338,1752895388153,500.0,6.8e-07,120]
[373184339,1752895395981,500.0,6.8e-07,120]
[373184340,1752895403854,500.0,6.8e-07,120]
[373184341,1752895411558,500.0,6.8e-07,120]
[373184344,1752895419591,500.0,6.8e-07,120]
[373184345,1752895428614,500.0,6.8e-07,120]
[373184346,1752895436687,500.0,6.8e-07,120]
[373184347,1752895444651,500.0,6.8e-07,120]
[373184348,1752895452532,500.0,6.8e-07,120]
[373184349,1752895465457,500.0,6.8e-07,120]
[373184350,1752895473478,500.0,6.8e-07,120]
[373184351,1752895480787,390.0,6.8e-07,120]
[373184354,1752895583288,500.0,6.8e-07,120]
[373184355,1752895591816,500.0,6.8e-07,120]
[373184356,1752895603564,500.0,6.8e-07,120]
[373184357,1752895611531,500.0,6.8e-07,120]
[373184358,1752895621741,500.0,6.8e-07,120]
[373184359,1752895624688,-506.0,0.00015884,2]
[373184360,1752895624711,-84.0,0.00016784,2]
[373184361,1752895630984,388.55547864,0.0002301,120]
[373184362,1752895633624,500.0,6.8e-07,120]
[373184376,1752895641373,500.0,6.8e-07,120]
[373184377,1752895648829,500.0,6.8e-07,120]
[373184378,1752895656349,500.0,6.8e-07,120]
[373184379,1752895664567,500.0,6.8e-07,120]
[373184380,1752895672521,500.0,6.8e-07,120]
[373184381,1752895679826,500.0,6.8e-07,120]
[373184382,1752895691269,500.0,6.8e-07,120]
[373184384,1752895715257,500.0,6.8e-07,120]
[373184387,1752895724477,500.0,6.8e-07,120]
[373184388,1752895733615,500.0,6.8e-07,120]
[373184389,1752895741764,500.0,6.8e-07,120]
[373184390,1752895749255,2618.0,0.00023,30]
[373184391,1752895751075,500.0,6.8e-07,120]
[373184392,1752895760395,500.0,6.8e-07,120]
[373184393,1752895769127,500.0,6.8e-07,120]
[373184394,1752895777775,500.0,6.8e-07,120]
[373184395,1752895788574,500.0,6.8e-07,120]
[373184396,1752895795883,500.0,6.8e-07,120]
[373184397,1752895805151,500.0,6.8e-07,120]
[373184399,1752895812011,180.29,0.00013699,2]
[373184400,1752895814226,500.0,6.8e-07,120]
[373184401,1752895823389,500.0,6.8e-07,120]
[373184402,1752895831695,500.0,6.8e-07,120]
[373184410,1752895831839,-250.0,0.00015,2]
[373184411,1752895831849,-183.89010005,0.0001624,2]
[373184412,1752895831858,-200.0,0.0001634,2]
[373184413,1752895831868,-200.0,0.00017446,2]
[373184414,1752895831878,-506.0,0.0001746,4]
[373184415,1752895831887,-204.82,0.00017475,2]
[373184416,1752895831897,-300.0,0.0001748,2]
[373184417,1752895831906,-150.0,0.000175,2]
[373184418,1752895831915,-211.93971334,0.00017586,2]
[373184419,1752895831924,-200.0,0.00017665,2]
[373184420,1752895831933,-300.0,0.00017685,2]
[373184421,1752895831943,-1200.0,0.00017685,2]
[373184422,1752895831952,-7619.41,0.00017686,2]
[373184423,1752895831962,-150.0,0.00017686,2]
[373184424,1752895831971,-260.0,0.00017699,2]
[373184425,1752895831980,-1000.0,0.00017706,2]
[373184426,1752895831989,-171.56,0.00017787,2]
[373184427,1752895831999,-3484.26,0.00017823,2]
[373184428,1752895832008,-2772.4662005,0.00017849,2]
[373184429,1752895832018,-500.0,0.00017849,2]
[373184430,1752895832027,-250.0,0.00017953,2]
[373184431,1752895832038,-3903.03865076,0.00018,2]
[373184471,1752895837811,-11796.3981,0.00018,2]
[373184472,1752895837823,-1011.88588075,0.00018,2]
[373184473,1752895839262,500.0,6.8e-07,120]
[373184474,1752895840098,-500.0,0.00018,2]
[373184475,1752895840207,-9471.32332867,0.00018,2]
[373184480,1752895842832,-1810.29454401,0.00017921,2]
[373184481,1752895843377,-6909.1341788,0.00017921,2]
[373184483,1752895846017,-510.40000037,0.00017921,2]
[373184484,1752895846034,-1337.77278778,0.00017921,2]
[373184516,1752895847627,500.0,6.8e-07,120]
[373184517,1752895856567,500.0,6.8e-07,120]
[373184518,1752895865053,500.0,6.8e-07,120]
[373184519,1752895875472,500.0,6.8e-07,120]
[373184520,1752895884270,500.0,6.8e-07,120]
[373184521,1752895891995,500.0,6.8e-07,120]
[373184522,1752895899313,500.0,6.8e-07,120]
[373184524,1752895906484,500.0,6.8e-07,120]
[373184525,1752895913615,500.0,6.8e-07,120]
[373184527,1752895922405,500.0,6.8e-07,120]
[373184528,1752895934205,500.0,6.8e-07,120]
[373184531,1752895941243,500.0,6.8e-07,120]
[373184532,1752895948857,500.0,6.8e-07,120]
[373184534,1752895956770,500.0,6.8e-07,120]
[373184535,1752895964572,500.0,6.8e-07,120]
[373184536,1752895968224,66556.27,0.0002501,120]
[373184538,1752895974490,500.0,6.8e-07,120]
[373184539,1752895984008,500.0,6.8e-07,120]
[373184541,1752895991491,500.0,6.8e-07,120]
[373184542,1752895999038,500.0,6.8e-07,120]
[373184543,1752896007801,500.0,6.8e-07,120]
[373184544,1752896014932,500.0,6.8e-07,120]
[373184545,1752896022973,500.0,6.8e-07,120]
[373184546,1752896025835,3096.86247014,0.0002501,120]
[373184549,1752896039480,-300.0,0.00017599,2]
[373184550,1752896039503,-11928.47808107,0.0001779,2]
[373184551,1752896039526,-470.56,0.00017813,2]
[373184552,1752896041230,300.0,0.00017789,2]
[373184553,1752896041387,1974.65,0.00017834,2]
[373184554,1752896054400,190.0,0.00017901,7]
[373184555,1752896054909,165.68,0.00017901,2]
[373184556,1752896056387,-12770.63191893,0.00017921,2]
[373184557,1752896063569,-187.44475441,0.00016712,2]
[373184591,1752896547910,168.14,0.00013856,2]
[373184593,1752896604249,300.0,6.8e-07,120]
[373184594,1752896611416,300.0,6.8e-07,120]
[373184595,1752896618831,300.0,6.8e-07,120]
[373184596,1752896625322,300.0,6.8e-07,120]
[373184597,1752896634987,300.0,6.8e-07,120]
[373184598,1752896642733,300.0,6.8e-07,120]
[373184599,1752896652039,300.0,6.8e-07,120]
[373184600,1752896661112,300.0,6.8e-07,120]
[373184601,1752896670280,300.0,6.8e-07,120]
[373184602,1752896678027,300.0,6.8e-07,120]
[373184603,1752896687559,300.0,6.8e-07,120]
[373184604,1752896696074,300.0,6.8e-07,120]
[373184605,1752896706716,151.0,6.8e-07,120]
[373184614,1752896834133,187.29,0.00013699,2]
[373184635,1752896999009,300.0,6.8e-07,120]
[373184636,1752897005661,300.0,6.8e-07,120]
[373184637,1752897012775,300.0,6.8e-07,120]
[373184638,1752897019107,300.0,6.8e-07,120]
[373184641,1752897031970,-942.82537678,0.00016599,2]
[373184643,1752897031982,-257.17462322,0.00016599,2]
[373184644,1752897031992,-18.43524559,0.00016712,2]
[373184645,1752897032001,-566.66367186,0.00016812,2]
[373184646,1752897032013,-1004.10493188,0.00016812,2]
[373184647,1752897032035,-22329.23139626,0.00016812,2]
[373184648,1752897032045,-364.01,0.00016844,2]
[373184649,1752897032059,-550.0,0.00016999,2]
[373184650,1752897032069,-18403.64286925,0.00017,2]
[373184651,1752897032079,-1000.0,0.00017134,2]
[373184652,1752897032089,-150.0,0.00017137,2]
[373184653,1752897032098,-10643.46,0.00017368,2]
[373184654,1752897032107,-250.0,0.00017376,2]
[373184655,1752897032116,-28809.4,0.00017385,2]
[373184656,1752897032126,-150.0,0.000175,2]
[373184657,1752897032137,-5511.0,0.000176,5]
[373184658,1752897032146,-150.0,0.0001763,2]
[373184659,1752897032156,-300.0,0.00017639,2]
[373184660,1752897032165,-770.77359217,0.00017663,2]
[373184661,1752897032174,-364.01,0.00017687,2]
[373184662,1752897032183,-7213.66593925,0.00017752,2]
[373184663,1752897032193,-277.19929604,0.00017752,2]
[373184664,1752897032202,-298.57279045,0.00017754,2]
[373184665,1752897032211,-229.5763,0.00017821,2]
[373184666,1752897032221,-279.28,0.00017842,2]
[373184667,1752897032230,-512.54962526,0.00017851,2]
[373184668,1752897032239,-162179.55052516,0.00017852,2]
[373184669,1752897032250,-273551.65247998,0.00017852,2]
[373184670,1752897032260,-16653.01805784,0.00017852,2]
[373184671,1752897032270,-15765.2136076,0.00017852,2]
[373184672,1752897032278,-167.42639614,0.00017861,2]
[373184673,1752897032287,-599.27,0.00017877,2]
[373184674,1752897032297,-599.27,0.00017886,2]
[373184675,1752897032306,-151.0,0.00017889,2]
[373184676,1752897032316,-167.71,0.0001789,2]
[373184677,1752897032325,-599.27,0.00017895,2]
[373184678,1752897032335,-583.88275602,0.00017898,2]
[373184679,1752897032345,-454.56,0.000179,2]
[373184680,1752897032354,-599.27,0.00017905,2]
[373184681,1752897032363,-19577.33,0.00017905,2]
[373184683,1752897032373,-599.27,0.00017914,2]
[373184684,1752897032382,-599.27,0.00017924,2]
[373184685,1752897032391,-599.27,0.00017933,2]
[373184686,1752897032401,-637.56,0.00017935,2]
[373184687,1752897032409,-599.27,0.00017942,2]
[373184688,1752897032419,-599.27,0.00017952,2]
[373184689,1752897032428,-153.073264,0.00017952,2]
[373184690,1752897032438,-151.0,0.00017961,2]
[373184691,1752897032448,-151.0,0.00017961,2]
[373184692,1752897032457,-151.0,0.00017961,2]
[373184694,1752897032466,-599.27,0.00017961,2]
[373184696,1752897032475,-599.27,0.00017971,2]
[373184698,1752897032484,-503.94833632,0.00017973,2]
[373184700,1752897032493,-453.4828222,0.00017973,2]
[373184701,1752897032503,-502.23946139,0.00017973,2]
[373184703,1752897032512,-500.0,0.00017973,2]
[373184705,1752897032525,-500.0,0.00017973,2]
[373184706,1752897032535,-500.0,0.00017973,2]
[373184708,1752897032545,-375.5796476,0.00017973,2]
[373184710,1752897032555,-500.0,0.00017973,2]
[373184712,1752897032564,-500.0,0.00017973,2]
[373184714,1752897032574,-502.46056393,0.00017973,2]
[373184716,1752897032583,-500.0,0.00017973,2]
[373184718,1752897032593,-500.0,0.00017973,2]
[373184721,1752897032602,-599.27,0.0001798,2]
[373184724,1752897032611,-599.27,0.00017989,2]
[373184727,1752897032624,-151.0,0.00017998,2]
[373184730,1752897032635,-152.231941,0.00017998,2]
[373184733,1752897032644,-153.538051,0.00017998,2]
[373184736,1752897032653,-599.27,0.00017999,2]
[373184738,1752897032663,-152.417122,0.00017999,2]
[373184741,1752897032672,-166.412537,0.00017999,2]
[373184743,1752897032681,-152.081321,0.00017999,2]
[373184745,1752897032691,-3616.66379066,0.00018,2]
[373184748,1752897032716,-918.50133388,0.00018,2]
[373184750,1752897032726,-9243.58487546,0.00018,2]
[373184752,1752897032735,-164.56,0.00018,2]
[373184754,1752897032744,-538.72,0.00018,2]
[373184756,1752897032753,-458.49,0.00018,2]
[373184758,1752897032762,-4877.38588762,0.00018,2]
[373184760,1752897032774,-421.49558456,0.00018,2]
[373184763,1752897032785,-389.94739782,0.00018,2]
[373184765,1752897032794,-172.23,0.00018001,2]
[373184767,1752897032804,-357.68260218,0.00018008,2]
[373184768,1752897032815,-241.58739782,0.00018008,2]
[373184785,1752897032931,-599.27,0.00018018,2]
[373184789,1752897032992,-599.27,0.00018027,2]
[373184791,1752897033002,-599.27,0.00018036,2]
[373184793,1752897033012,-599.27,0.00018046,2]
[373184795,1752897033021,-599.27,0.00018055,2]
[373184797,1752897033030,-7213.66593919,0.00018094,2]
[373184799,1752897033040,-676.34082342,0.000181,2]
[373184801,1752897033050,-375.0,0.00018104,2]
[373184803,1752897033059,-150.0,0.00018169,2]
[373184805,1752897033069,-15765.21360752,0.00018191,2]
[373184807,1752897033079,-153.16,0.00018218,2]
[373184809,1752897033089,-5688.82888,0.0001823,2]
[373184811,1752897033099,-165.91,0.0001826,2]
[373184812,1752897033109,-151.0,0.00018283,2]
[373184813,1752897033118,-150.0,0.00018283,2]
[373184814,1752897033127,-183.99,0.00018329,2]
[373184815,1752897033138,-1773.54116967,0.0001842,2]
[373184816,1752897033149,-2258.31483033,0.0001842,2]
[373184817,1752897033159,-359.76179104,0.0001842,2]
[373184818,1752897033168,-207.4,0.0001842,2]
[373184819,1752897033178,-163.68321341,0.0001842,2]
[373184820,1752897033187,-151.0,0.00018427,2]
[373184821,1752897033197,-151.0,0.00018427,2]
[373184822,1752897033206,-151.0,0.00018427,2]
[373184823,1752897033217,-7213.66593919,0.00018436,2]
[373184824,1752897033226,-197.7,0.00018455,2]
[373184825,1752897033235,-1000.0,0.00018499,2]
[373184826,1752897033245,-151.0,0.000185,2]
[373184827,1752897033254,-151.0,0.000185,2]
[373184828,1752897033264,-950.27261386,0.00018521,2]
[373184829,1752897033273,-503.4696094,0.00018521,2]
[373184830,1752897033282,-151.0,0.00018527,2]
[373184831,1752897033292,-151.0,0.00018527,2]
[373184832,1752897033301,-152.342555,0.00018527,2]
[373184833,1752897033311,-364.01,0.00018529,2]
[373184834,1752897033321,-15765.21360752,0.00018529,2]
[373184835,1752897033330,-1000.0,0.0001863,2]
[373184836,1752897033339,-325.43,0.0001863,2]
[373184837,1752897033348,-151.0,0.00018694,2]
[373184838,1752897033359,-151.0,0.00018694,2]
[373184839,1752897033376,-189.769539,0.000187,2]
[373184840,1752897033390,-300.0,0.000187,6]
[373184841,1752897033399,-5688.82887,0.0001873,2]
[373184842,1752897033409,-168.0,0.00018744,2]
[373184843,1752897033418,-168.0,0.00018762,2]
[373184844,1752897033428,-168.0,0.00018769,2]
[373184845,1752897033437,-168.0,0.00018773,2]
[373184846,1752897033447,-7213.66593919,0.00018778,2]
[373184847,1752897033456,-150.0,0.0001878,2]
[373184848,1752897033465,-151.0,0.00018791,2]
[373184849,1752897033474,-153.471792,0.00018791,2]
[373184850,1752897033484,-700.0,0.000188,6]
[373184851,1752897033494,-835.228444,0.00018802,2]
[373184852,1752897033503,-168.0,0.00018851,2]
[373184853,1752897033513,-15765.21360752,0.00018868,2]
[373184854,1752897033522,-206.0,0.000189,2]
[373184855,1752897033532,-1100.0,0.000189,6]
[373184856,1752897033541,-847.68916657,0.000189,2]
[373184857,1752897033551,-847.68916657,0.000189,2]
[373184858,1752897033560,-847.68916657,0.000189,2]
[373184859,1752897033570,-847.68916657,0.000189,2]
[373184860,1752897033581,-847.68916657,0.000189,2]
[373184861,1752897033591,-847.68916657,0.000189,2]
[373184862,1752897033600,-847.68916657,0.000189,2]
[373184863,1752897033609,-847.68916657,0.000189,2]
[373184864,1752897033621,-847.68916657,0.000189,2]
[373184865,1752897033632,-847.68916657,0.000189,2]
[373184866,1752897033641,-847.68916657,0.000189,2]
[373184867,1752897033651,-847.68916657,0.00018922,2]
[373184868,1752897033662,-150.0,0.00018936,2]
[373184869,1752897033671,-151.0,0.00018961,2]
[373184870,1752897033681,-151.0,0.00018961,2]
[373184871,1752897033691,-151.0,0.00018961,2]
[373184872,1752897033701,-1000.0,0.00018978,2]
[373184873,1752897033712,-152.326312,0.00018982,2]
[373184874,1752897033722,-156.523768,0.00018982,2]
[373184875,1752897033731,-5000.0,0.00019,2]
[373184876,1752897033740,-5538.04642549,0.00019,3]
[373184877,1752897033752,-979.42542323,0.00019,3]
[373184878,1752897033764,-2269.33792627,0.00019,3]
[373184879,1752897033775,-1695.32583997,0.00019,3]
[373184880,1752897033799,-629.17442911,0.00019,3]
[373184881,1752897033811,-268.61,0.00019,3]
[373184882,1752897033823,-454.21859605,0.00019,3]
[373184883,1752897033834,-2218.08156002,0.00019,3]
[373184884,1752897033934,-27.78345428,0.00019,3]
[373184885,1752897033962,-5511.0,0.000169,3]
[373184886,1752897033972,-3635.80634558,0.00019,3]
[373184887,1752897033981,-151.0,0.00019,2]
[373184888,1752897033991,-476.80070012,0.00019,3]
[373184889,1752897034001,-210.82967408,0.00019,3]
[373184890,1752897034010,-4461.0,0.0001901,2]
[373184891,1752897034021,-423.76979061,0.0001901,2]
[373184892,1752897034032,-985.1734276,0.0001901,2]
[373184893,1752897034045,-1200.0,0.0001901,2]
[373184894,1752897034056,-1852.05678179,0.0001901,2]
[373184895,1752897034066,-183.99,0.00019016,2]
[373184896,1752897034076,-847.68916657,0.00019024,2]
[373184897,1752897034085,-168.0,0.00019027,2]
[373184898,1752897034095,-433.75682921,0.00019052,2]
[373184899,1752897034119,-121.08157079,0.00019052,2]
[373184900,1752897034128,-151.0,0.00019054,2]
[373184901,1752897034138,-151.0,0.00019054,2]
[373184902,1752897034151,-151.0,0.00019054,2]
[373184903,1752897034160,-155.395145,0.00019078,2]
[373184904,1752897034170,-151.0,0.00019078,2]
[373184905,1752897034179,-151.0,0.00019078,2]
[373184906,1752897034189,-151.0,0.00019078,2]
[373184907,1752897034198,-22.22349088,0.00019078,2]
[373184908,1752897034210,-136.60974912,0.00019078,2]
[373184909,1752897034219,-151.0,0.00019078,2]
[373184910,1752897034229,-235.931314,0.00019078,2]
[373184911,1752897034239,-160.71899417,0.00019078,2]
[373184912,1752897034270,-75.21231983,0.00019078,2]
[373184913,1752897034280,-151.0,0.00019078,2]
[373184914,1752897034289,-157.83446646,0.00019078,2]
[373184915,1752897034299,-151.0,0.00019078,2]
[373184916,1752897034309,-151.0,0.00019078,2]
[373184917,1752897034320,-151.0,0.00019078,2]
[373184918,1752897034329,-1301.99772042,0.00019078,2]
[373184919,1752897034350,-334.78694722,0.00019078,2]
[373184920,1752897034361,-1195.126,0.00019078,2]
[373184921,1752897034373,-350.0,0.00019078,2]
[373184922,1752897034385,-748.44104968,0.00019078,2]
[373184923,1752897034397,-35515.10305874,0.00019078,2]
[373184924,1752897034408,-4704.63184408,0.00019078,2]
[373184925,1752897034419,-1193.62908178,0.00019078,2]
[373184926,1752897034430,-2277.1,0.00019078,2]
[373184949,1752897038007,-324.060861,0.000163,2]
[373184951,1752897038019,-7190.0,0.000163,2]
[373184954,1752897038060,-400.0,0.000163,2]
[373184955,1752897038072,-17287.18953654,0.000163,2]
[373184956,1752897038084,-1079.47531658,0.000163,2]
[373184957,1752897038115,-17152.6796246,0.000163,2]
[373184958,1752897038169,-6020.19294433,0.000163,2]
[373185132,1752897040171,-458.6770769,0.000163,2]
[373185134,1752897040183,-842.74850003,0.000163,2]
[373185136,1752897040195,-5580.47145673,0.000163,2]
[373185140,1752897040224,-11363.80887877,0.000163,2]
[373185146,1752897040279,-4675.69580452,0.000163,2]
[373185148,1752897040290,-277.19929599,0.00018746,2]
[373185150,1752897040299,-9361.56257149,0.00019078,2]
[373185154,1752897040331,-2975.09716881,0.00019078,2]
[373185157,1752897040343,-82261.47775778,0.00019078,2]